[Event "*** Titled Tuesday Blitz"]
[Site "Chess.com"]
[Date "2020.04.21"]
[Round "4"]
[White "arctic_t00"]
[Black "LuisFSiles"]
[Result "1-0"]
[WhiteElo "2462"]
[BlackElo "2274"]
[TimeControl "180+1"]
[EndTime "10:40:33 PDT"]
[Termination "arctic_t00 won on time"]

1. d4 {[%clk 0:03:00.9]} 1... Nf6 {[%clk 0:02:59]} 2. Nf3 {[%clk 0:03:00.5]}
2... g6 {[%clk 0:02:59.1]} 3. Nbd2 {[%clk 0:02:58.8]} 3... d5 {[%clk 0:02:58.2]}
4. e3 {[%clk 0:02:58]} 4... Bg7 {[%clk 0:02:58]} 5. b4 {[%clk 0:02:58.6]} 5...
O-O {[%clk 0:02:56.7]} 6. Bb2 {[%clk 0:02:58.2]} 6... b6 {[%clk 0:02:48.2]} 7.
c4 {[%clk 0:02:52]} 7... Nbd7 {[%clk 0:02:41.3]} 8. Be2 {[%clk 0:02:41.3]} 8...
c5 {[%clk 0:02:25.7]} 9. dxc5 {[%clk 0:02:39.8]} 9... bxc5 {[%clk 0:02:25.2]}
10. b5 {[%clk 0:02:40.2]} 10... Re8 {[%clk 0:01:46.6]} 11. Ne5 {[%clk
0:01:50.4]} 11... Nxe5 {[%clk 0:01:43.2]} 12. Bxe5 {[%clk 0:01:50.1]} 12... Bb7
{[%clk 0:01:35.3]} 13. Bf3 {[%clk 0:01:39.5]} 13... e6 {[%clk 0:01:21.1]} 14.
O-O {[%clk 0:01:38.4]} 14... Nd7 {[%clk 0:01:11.5]} 15. Bxg7 {[%clk 0:01:37.2]}
15... Kxg7 {[%clk 0:01:12.4]} 16. Qb3 {[%clk 0:01:29.4]} 16... Nf6 {[%clk
0:01:08.7]} 17. Rfd1 {[%clk 0:01:23.3]} 17... Qb6 {[%clk 0:01:05.1]} 18. Qb2
{[%clk 0:01:04.4]} 18... Rad8 {[%clk 0:00:53.8]} 19. a4 {[%clk 0:01:02.6]} 19...
e5 {[%clk 0:00:49.7]} 20. cxd5 {[%clk 0:00:54.3]} 20... Bxd5 {[%clk 0:00:44.3]}
21. Bxd5 {[%clk 0:00:48.1]} 21... Rxd5 {[%clk 0:00:44.3]} 22. Nc4 {[%clk
0:00:45.3]} 22... Qe6 {[%clk 0:00:44]} 23. Qc2 {[%clk 0:00:30.7]} 23... Red8
{[%clk 0:00:40.7]} 24. Na5 {[%clk 0:00:25.8]} 24... Rxd1+ {[%clk 0:00:34.9]} 25.
Rxd1 {[%clk 0:00:26.7]} 25... Qa2 {[%clk 0:00:35.2]} 26. Qc1 {[%clk 0:00:22.3]}
26... Qb2 {[%clk 0:00:24.4]} 27. h3 {[%clk 0:00:20.4]} 27... Rxd1+ {[%clk
0:00:09.7]} 28. Qxd1 {[%clk 0:00:19.6]} 28... Ne4 {[%clk 0:00:10.2]} 29. Qf3
{[%clk 0:00:17.4]} 29... f5 {[%clk 0:00:09]} 30. Nc6 {[%clk 0:00:15.1]} 30...
Nd2 {[%clk 0:00:07.7]} 31. Qd1 {[%clk 0:00:11.4]} 31... c4 {[%clk 0:00:07.3]}
32. Nxe5 {[%clk 0:00:08.3]} 32... c3 {[%clk 0:00:07.4]} 33. Nd3 {[%clk
0:00:06.7]} 33... Qa2 {[%clk 0:00:05.9]} 34. Ne1 {[%clk 0:00:06.8]} 34... Qc4
{[%clk 0:00:05.1]} 35. Nc2 {[%clk 0:00:05.1]} 35... Qd3 {[%clk 0:00:03.8]} 36.
Kh2 {[%clk 0:00:03.5]} 36... Nf1+ {[%clk 0:00:01.3]} 37. Kg1 {[%clk 0:00:04.4]}
37... Qxd1 {[%clk 0:00:01.4]} 38. g3 {[%clk 0:00:05.3]} 1-0

[Event "*** Titled Tuesday Blitz"]
[Site "Chess.com"]
[Date "2020.04.21"]
[Round "4"]
[White "turayev_shahruh17"]
[Black "Manukyan_Artak"]
[Result "1/2-1/2"]
[WhiteElo "2564"]
[BlackElo "2354"]
[TimeControl "180+1"]
[EndTime "10:40:34 PDT"]
[Termination "Game drawn by agreement"]

1. e4 {[%clk 0:02:59.5]} 1... c6 {[%clk 0:02:59.9]} 2. Nc3 {[%clk 0:02:59.3]}
2... d5 {[%clk 0:03:00.8]} 3. exd5 {[%clk 0:03:00]} 3... cxd5 {[%clk 0:03:00.9]}
4. d4 {[%clk 0:03:00.5]} 4... Nc6 {[%clk 0:03:01.1]} 5. Bf4 {[%clk 0:03:00.1]}
5... Nf6 {[%clk 0:03:00.2]} 6. Nb5 {[%clk 0:02:59.9]} 6... e5 {[%clk 0:02:45.4]}
7. Bxe5 {[%clk 0:02:59.3]} 7... Nxe5 {[%clk 0:02:41.2]} 8. dxe5 {[%clk
0:03:00.2]} 8... Ng4 {[%clk 0:02:08.5]} 9. Qxd5 {[%clk 0:02:58.2]} 9... Qa5+
{[%clk 0:01:48.1]} 10. c3 {[%clk 0:02:54]} 10... Qd8 {[%clk 0:01:22]} 11. Nf3
{[%clk 0:02:27.6]} 11... Be6 {[%clk 0:01:09.3]} 12. Qxd8+ {[%clk 0:02:26.1]}
12... Rxd8 {[%clk 0:01:08.8]} 13. Nc7+ {[%clk 0:02:26.2]} 13... Kd7 {[%clk
0:01:08.5]} 14. Nxe6 {[%clk 0:02:26.4]} 14... Kxe6 {[%clk 0:01:09.4]} 15. Bc4+
{[%clk 0:02:25.7]} 15... Kf5 {[%clk 0:01:09.6]} 16. Bxf7 {[%clk 0:02:21]} 16...
Nxe5 {[%clk 0:01:07.3]} 17. Nxe5 {[%clk 0:02:17.8]} 17... Kxe5 {[%clk
0:01:08.2]} 18. O-O {[%clk 0:02:16.5]} 18... Rd2 {[%clk 0:01:08.1]} 19. b4
{[%clk 0:02:05.8]} 19... Kf6 {[%clk 0:00:52.4]} 20. Bb3 {[%clk 0:02:01.2]} 20...
g6 {[%clk 0:00:39.5]} 21. Rad1 {[%clk 0:01:57.9]} 21... Bh6 {[%clk 0:00:39.3]}
22. Rxd2 {[%clk 0:01:53.6]} 22... Bxd2 {[%clk 0:00:40.2]} 23. Rd1 {[%clk
0:01:45.5]} 23... Bxc3 {[%clk 0:00:40.1]} 24. b5 {[%clk 0:01:46.4]} 24... Re8
{[%clk 0:00:35.5]} 25. g3 {[%clk 0:01:41.2]} 25... Re1+ {[%clk 0:00:35.1]} 26.
Rxe1 {[%clk 0:01:40.9]} 26... Bxe1 {[%clk 0:00:36]} 27. Kf1 {[%clk 0:01:41.1]}
27... Bb4 {[%clk 0:00:29.7]} 28. Ke2 {[%clk 0:01:41.1]} 28... h5 {[%clk
0:00:20.7]} 29. Kf3 {[%clk 0:01:37.4]} 29... g5 {[%clk 0:00:20.3]} 30. Ke4
{[%clk 0:01:35.1]} 30... Bc5 {[%clk 0:00:19.7]} 31. f3 {[%clk 0:01:34.5]} 31...
Bg1 {[%clk 0:00:19.1]} 32. h3 {[%clk 0:01:32.7]} 32... Bf2 {[%clk 0:00:19.3]}
33. g4 {[%clk 0:01:28.4]} 33... hxg4 {[%clk 0:00:19.3]} 34. hxg4 {[%clk
0:01:28.7]} 34... Bg1 {[%clk 0:00:15.2]} 35. Bd5 {[%clk 0:01:29.6]} 35... b6
{[%clk 0:00:14.8]} 36. Bb3 {[%clk 0:01:29.1]} 36... Bc5 {[%clk 0:00:14.7]} 37.
Kd5 {[%clk 0:01:29.2]} 37... Bb4 {[%clk 0:00:15]} 38. Kc6 {[%clk 0:01:29.4]}
38... Ke5 {[%clk 0:00:15.4]} 39. Kb7 {[%clk 0:01:29.5]} 39... Ba5 {[%clk
0:00:14.7]} 40. Kxa7 {[%clk 0:01:29.4]} 40... Kf4 {[%clk 0:00:15.3]} 41. Bd5
{[%clk 0:01:29]} 41... Ke5 {[%clk 0:00:15.5]} 42. Be4 {[%clk 0:01:28.8]} 42...
Kf4 {[%clk 0:00:15.7]} 43. Kb7 {[%clk 0:01:29.7]} 43... Ke5 {[%clk 0:00:15]} 44.
Kc6 {[%clk 0:01:30.6]} 44... Kf4 {[%clk 0:00:15.2]} 45. Kd5 {[%clk 0:01:31.5]}
45... Bc3 {[%clk 0:00:14.9]} 46. Ke6 {[%clk 0:01:32.4]} 46... Ba5 {[%clk
0:00:15.4]} 47. Kd5 {[%clk 0:01:33.2]} 47... Bb4 {[%clk 0:00:15.8]} 48. Kc6
{[%clk 0:01:31.9]} 48... Ba5 {[%clk 0:00:16.7]} 49. a3 {[%clk 0:01:31.9]} 49...
Ke5 {[%clk 0:00:17]} 50. Kd7 {[%clk 0:01:31.2]} 50... Bc3 {[%clk 0:00:16.8]} 51.
Kc7 {[%clk 0:01:30.4]} 51... Ba5 {[%clk 0:00:17.3]} 52. Kc6 {[%clk 0:01:30.1]}
52... Kf4 {[%clk 0:00:16.3]} 53. Kd5 {[%clk 0:01:28.7]} 53... Bc3 {[%clk
0:00:16.5]} 54. Kc4 {[%clk 0:01:28.4]} 54... Ba5 {[%clk 0:00:16.6]} 55. Kd3
{[%clk 0:01:28.8]} 55... Be1 {[%clk 0:00:16.2]} 56. Ke2 {[%clk 0:01:29.7]} 56...
Ba5 {[%clk 0:00:16.6]} 57. Bf5 {[%clk 0:01:30.1]} 57... Bc3 {[%clk 0:00:15.1]}
58. Bd7 {[%clk 0:01:31]} 58... Bb2 {[%clk 0:00:13.7]} 59. Bc6 {[%clk 0:01:31.9]}
59... Bxa3 {[%clk 0:00:13.9]} 60. Kd3 {[%clk 0:01:31.8]} 60... Bc5 {[%clk
0:00:14.5]} 61. Be4 {[%clk 0:01:32.7]} 61... Ke5 {[%clk 0:00:14.7]} 62. Kc4
{[%clk 0:01:33.6]} 62... Be3 {[%clk 0:00:14.3]} 63. Bf5 {[%clk 0:01:32.8]} 63...
Bc5 {[%clk 0:00:15.1]} 64. Bd7 {[%clk 0:01:32.5]} 64... Kf4 {[%clk 0:00:16]} 65.
Bc6 {[%clk 0:01:33.4]} 65... Ke5 {[%clk 0:00:16.5]} 66. Bd7 {[%clk 0:01:33.6]}
66... Kf4 {[%clk 0:00:16.9]} 67. Bc6 {[%clk 0:01:33.4]} 67... Ke5 {[%clk
0:00:17.2]} 68. Be4 {[%clk 0:01:32.9]} 68... Kf4 {[%clk 0:00:17.4]} 69. Kd5
{[%clk 0:01:33.3]} 69... Be3 {[%clk 0:00:16.8]} 70. Kc6 {[%clk 0:01:33]} 70...
Bc5 {[%clk 0:00:17.7]} 1/2-1/2

[Event "*** Titled Tuesday Blitz"]
[Site "Chess.com"]
[Date "2020.04.21"]
[Round "4"]
[White "Yaacovn"]
[Black "Stewie_89"]
[Result "1-0"]
[WhiteElo "2826"]
[BlackElo "2642"]
[TimeControl "180+1"]
[EndTime "10:40:35 PDT"]
[Termination "Yaacovn won by resignation"]

1. d4 {[%clk 0:03:00.7]} 1... d5 {[%clk 0:02:59.8]} 2. e3 {[%clk 0:03:00.5]}
2... Nf6 {[%clk 0:02:59.2]} 3. Bd3 {[%clk 0:03:00.1]} 3... c5 {[%clk 0:02:56.7]}
4. c3 {[%clk 0:02:59.9]} 4... Nc6 {[%clk 0:02:56.8]} 5. f4 {[%clk 0:02:59.6]}
5... g6 {[%clk 0:02:55.4]} 6. Nf3 {[%clk 0:02:58.8]} 6... Bg7 {[%clk 0:02:46.9]}
7. O-O {[%clk 0:02:58.5]} 7... O-O {[%clk 0:02:45.4]} 8. Nbd2 {[%clk 0:02:58.1]}
8... Bf5 {[%clk 0:02:44]} 9. Qe2 {[%clk 0:02:56.8]} 9... c4 {[%clk 0:02:36.6]}
10. Bb1 {[%clk 0:02:55.6]} 10... Bxb1 {[%clk 0:02:14.6]} 11. Rxb1 {[%clk
0:02:55]} 11... b5 {[%clk 0:02:14.8]} 12. Ne5 {[%clk 0:02:47.7]} 12... Qd6
{[%clk 0:02:05.3]} 13. e4 {[%clk 0:02:47]} 13... e6 {[%clk 0:02:05.2]} 14. g4
{[%clk 0:02:35.1]} 14... Nxe4 {[%clk 0:01:34.5]} 15. Nxe4 {[%clk 0:02:34.5]}
15... dxe4 {[%clk 0:01:34.8]} 16. Qxe4 {[%clk 0:02:34.7]} 16... Ne7 {[%clk
0:01:35.4]} 17. Bd2 {[%clk 0:02:23.8]} 17... Qd5 {[%clk 0:01:30.9]} 18. Qxd5
{[%clk 0:02:05.4]} 18... Nxd5 {[%clk 0:01:30.2]} 19. f5 {[%clk 0:02:05.3]} 19...
Rfe8 {[%clk 0:01:05.1]} 20. fxg6 {[%clk 0:01:58.2]} 20... fxg6 {[%clk
0:01:04.6]} 21. Rbe1 {[%clk 0:01:52.3]} 21... Rf8 {[%clk 0:00:58.6]} 22. Nf3
{[%clk 0:01:14.3]} 22... Rae8 {[%clk 0:00:53.7]} 23. Kg2 {[%clk 0:01:12.2]}
23... h6 {[%clk 0:00:51.6]} 24. Re2 {[%clk 0:01:08.3]} 24... Re7 {[%clk
0:00:33.6]} 25. h3 {[%clk 0:00:59.6]} 25... Rfe8 {[%clk 0:00:31.6]} 26. Rfe1
{[%clk 0:00:57.8]} 26... Kh7 {[%clk 0:00:28.5]} 27. h4 {[%clk 0:00:57.5]} 27...
Kg8 {[%clk 0:00:27.1]} 28. Kg3 {[%clk 0:00:56.9]} 28... Kh7 {[%clk 0:00:27.1]}
29. a3 {[%clk 0:00:56.1]} 29... a6 {[%clk 0:00:26.7]} 30. Bf4 {[%clk 0:00:52.5]}
30... a5 {[%clk 0:00:18.2]} 31. Bd6 {[%clk 0:00:50.1]} 31... Rd7 {[%clk
0:00:18.3]} 32. Rxe6 {[%clk 0:00:48.7]} 32... Rxe6 {[%clk 0:00:18.5]} 33. Rxe6
{[%clk 0:00:49]} 33... b4 {[%clk 0:00:19.1]} 34. axb4 {[%clk 0:00:48.8]} 34...
axb4 {[%clk 0:00:18.9]} 35. cxb4 {[%clk 0:00:35.1]} 35... Rb7 {[%clk 0:00:18.4]}
36. Ne5 {[%clk 0:00:31.9]} 36... Bxe5+ {[%clk 0:00:17.7]} 37. dxe5 {[%clk
0:00:29.8]} 37... Nxb4 {[%clk 0:00:15.6]} 38. Bxb4 {[%clk 0:00:16.5]} 38... Rxb4
{[%clk 0:00:15.3]} 39. Rc6 {[%clk 0:00:17.1]} 39... Rxb2 {[%clk 0:00:14.2]} 40.
Rxc4 {[%clk 0:00:14]} 40... Re2 {[%clk 0:00:14.8]} 41. Kf4 {[%clk 0:00:14.1]}
41... Kg7 {[%clk 0:00:14.9]} 42. Rc7+ {[%clk 0:00:13.9]} 42... Kf8 {[%clk
0:00:15.1]} 43. h5 {[%clk 0:00:14.4]} 43... gxh5 {[%clk 0:00:14.5]} 44. gxh5
{[%clk 0:00:14.6]} 44... Rh2 {[%clk 0:00:15.1]} 45. Kf5 {[%clk 0:00:14.4]} 45...
Rxh5+ {[%clk 0:00:15]} 46. Kf6 {[%clk 0:00:14.6]} 46... Ke8 {[%clk 0:00:14.9]}
47. Rh7 {[%clk 0:00:13.3]} 47... Rh1 {[%clk 0:00:14.3]} 48. Rh8+ {[%clk
0:00:13.5]} 48... Kd7 {[%clk 0:00:14.5]} 49. e6+ {[%clk 0:00:14]} 49... Kd6
{[%clk 0:00:14.8]} 50. Rd8+ {[%clk 0:00:13.4]} 50... Kc7 {[%clk 0:00:15.4]} 51.
e7 {[%clk 0:00:13.9]} 51... Rf1+ {[%clk 0:00:15.7]} 52. Kg6 {[%clk 0:00:14.1]}
1-0

[Event "*** Titled Tuesday Blitz"]
[Site "Chess.com"]
[Date "2020.04.21"]
[Round "4"]
[White "nfds"]
[Black "Galileo22"]
[Result "1-0"]
[WhiteElo "2540"]
[BlackElo "2323"]
[TimeControl "180+1"]
[EndTime "10:40:35 PDT"]
[Termination "nfds won on time"]

1. Nf3 {[%clk 0:02:58]} 1... d5 {[%clk 0:02:59.4]} 2. c4 {[%clk 0:02:57.3]} 2...
d4 {[%clk 0:02:55.4]} 3. g3 {[%clk 0:02:55.2]} 3... f6 {[%clk 0:02:48]} 4. Bg2
{[%clk 0:02:50.7]} 4... e5 {[%clk 0:02:48.2]} 5. O-O {[%clk 0:02:50.3]} 5... c5
{[%clk 0:02:45]} 6. b4 {[%clk 0:02:47.7]} 6... cxb4 {[%clk 0:02:39.3]} 7. a3
{[%clk 0:02:47.3]} 7... b3 {[%clk 0:02:33.1]} 8. Qxb3 {[%clk 0:02:45.5]} 8...
Nd7 {[%clk 0:02:29.2]} 9. e3 {[%clk 0:02:41.6]} 9... Nc5 {[%clk 0:02:25.1]} 10.
Qb2 {[%clk 0:02:38.8]} 10... d3 {[%clk 0:02:22]} 11. Nc3 {[%clk 0:02:17.4]}
11... Ne7 {[%clk 0:02:11.2]} 12. Qb5+ {[%clk 0:02:00.4]} 12... Nc6 {[%clk
0:02:10.3]} 13. Nd5 {[%clk 0:01:52]} 13... Bd6 {[%clk 0:01:55]} 14. a4 {[%clk
0:01:50.8]} 14... O-O {[%clk 0:01:11.7]} 15. Ne1 {[%clk 0:01:47.6]} 15... a6
{[%clk 0:00:45.5]} 16. Qb1 {[%clk 0:01:46.4]} 16... e4 {[%clk 0:00:43.8]} 17.
Ba3 {[%clk 0:01:39]} 17... f5 {[%clk 0:00:43.4]} 18. f3 {[%clk 0:01:36.2]} 18...
Re8 {[%clk 0:00:34.5]} 19. fxe4 {[%clk 0:01:20.6]} 19... fxe4 {[%clk 0:00:35.4]}
20. Bxc5 {[%clk 0:01:16.2]} 20... Bxc5 {[%clk 0:00:36.3]} 21. Rf4 {[%clk
0:01:14.8]} 21... Ne5 {[%clk 0:00:30.3]} 22. Rxe4 {[%clk 0:00:58.6]} 22... Bf5
{[%clk 0:00:27.6]} 23. Rf4 {[%clk 0:00:57.3]} 23... Bg6 {[%clk 0:00:26.7]} 24.
Qxb7 {[%clk 0:00:42.2]} 24... Ra7 {[%clk 0:00:26.1]} 25. Qb3 {[%clk 0:00:37.1]}
25... Qd6 {[%clk 0:00:22.3]} 26. Rb1 {[%clk 0:00:34.6]} 26... Rd7 {[%clk
0:00:20.8]} 27. Nf3 {[%clk 0:00:31.3]} 27... Nxf3+ {[%clk 0:00:18.2]} 28. Bxf3
{[%clk 0:00:29.1]} 28... h5 {[%clk 0:00:18.1]} 29. Kg2 {[%clk 0:00:26.6]} 29...
Kh7 {[%clk 0:00:17.5]} 30. e4 {[%clk 0:00:24.8]} 30... Qe6 {[%clk 0:00:14.5]}
31. Qxd3 {[%clk 0:00:23.3]} 31... Bd6 {[%clk 0:00:14.3]} 32. Rf5 {[%clk
0:00:19.2]} 32... h4 {[%clk 0:00:06.1]} 33. Bg4 {[%clk 0:00:14.5]} 33... Qg8
{[%clk 0:00:04.7]} 34. e5 {[%clk 0:00:12.4]} 34... Rxe5 {[%clk 0:00:03.5]} 35.
Nf4 {[%clk 0:00:04]} 35... Rxf5 {[%clk 0:00:02.7]} 36. Bxf5 {[%clk 0:00:03.7]}
36... Bxf5 {[%clk 0:00:01.2]} 37. Qxf5+ {[%clk 0:00:03.5]} 37... Kh8 {[%clk
0:00:02.1]} 38. Ng6+ {[%clk 0:00:02.9]} 38... Kh7 {[%clk 0:00:01.9]} 39. Nf8+
{[%clk 0:00:03.2]} 39... Kh8 {[%clk 0:00:02.8]} 40. Nxd7 {[%clk 0:00:03.1]}
40... Qa8+ {[%clk 0:00:01.8]} 41. Kh3 {[%clk 0:00:02.7]} 41... Qe8 {[%clk
0:00:02.7]} 42. Qg4 {[%clk 0:00:02.6]} 42... Qe2 {[%clk 0:00:02.3]} 43. Qxe2
{[%clk 0:00:02.4]} 1-0

[Event "*** Titled Tuesday Blitz"]
[Site "Chess.com"]
[Date "2020.04.21"]
[Round "4"]
[White "benko_008"]
[Black "Filip_Covic"]
[Result "1-0"]
[WhiteElo "2495"]
[BlackElo "2302"]
[TimeControl "180+1"]
[EndTime "10:40:35 PDT"]
[Termination "benko_008 won by resignation"]

1. Nf3 {[%clk 0:03:00.9]} 1... Nf6 {[%clk 0:02:59.7]} 2. c4 {[%clk 0:03:00.9]}
2... e6 {[%clk 0:02:57.2]} 3. Nc3 {[%clk 0:03:00.9]} 3... Bb4 {[%clk 0:02:57.7]}
4. Qc2 {[%clk 0:03:00.9]} 4... O-O {[%clk 0:02:57.2]} 5. a3 {[%clk 0:03:01.1]}
5... Bxc3 {[%clk 0:02:57]} 6. Qxc3 {[%clk 0:03:02]} 6... b6 {[%clk 0:02:57.9]}
7. b4 {[%clk 0:03:01.7]} 7... a5 {[%clk 0:02:57.3]} 8. Bb2 {[%clk 0:03:01.2]}
8... d6 {[%clk 0:02:56.9]} 9. g3 {[%clk 0:02:59]} 9... Bb7 {[%clk 0:02:56.8]}
10. Bg2 {[%clk 0:02:59]} 10... Nbd7 {[%clk 0:02:53.7]} 11. O-O {[%clk 0:02:58]}
11... Qe7 {[%clk 0:02:54.2]} 12. b5 {[%clk 0:02:56.9]} 12... e5 {[%clk
0:02:51.6]} 13. d3 {[%clk 0:02:55.3]} 13... Nc5 {[%clk 0:02:50.6]} 14. e4 {[%clk
0:02:38.5]} 14... Na4 {[%clk 0:02:26.8]} 15. Qc2 {[%clk 0:02:36.7]} 15... Nxb2
{[%clk 0:02:26.8]} 16. Qxb2 {[%clk 0:02:37.6]} 16... Nd7 {[%clk 0:02:24.2]} 17.
Nh4 {[%clk 0:02:34.1]} 17... Nc5 {[%clk 0:02:14.1]} 18. Nf5 {[%clk 0:02:24]}
18... Qf6 {[%clk 0:02:13.2]} 19. Rad1 {[%clk 0:02:17.3]} 19... Bc8 {[%clk
0:02:12.3]} 20. Ne3 {[%clk 0:02:16.6]} 20... Be6 {[%clk 0:02:08.2]} 21. f4
{[%clk 0:02:13.8]} 21... Qh6 {[%clk 0:01:42.9]} 22. Rf2 {[%clk 0:02:00.8]} 22...
f6 {[%clk 0:01:36.7]} 23. Rdd2 {[%clk 0:01:50]} 23... Qh5 {[%clk 0:01:19.3]} 24.
Qb1 {[%clk 0:01:45.2]} 24... Qf7 {[%clk 0:00:47.4]} 25. Qd1 {[%clk 0:01:39.6]}
25... Qd7 {[%clk 0:00:45.5]} 26. Bf3 {[%clk 0:01:37]} 26... Rae8 {[%clk
0:00:42.2]} 27. Bg4 {[%clk 0:01:28]} 27... Bxg4 {[%clk 0:00:41.6]} 28. Nxg4
{[%clk 0:01:27.8]} 28... Ne6 {[%clk 0:00:36.7]} 29. Ne3 {[%clk 0:01:26.7]} 29...
Nd4 {[%clk 0:00:36.6]} 30. Nd5 {[%clk 0:01:26.5]} 30... Rf7 {[%clk 0:00:31.6]}
31. f5 {[%clk 0:01:22.9]} 31... Qd8 {[%clk 0:00:24.1]} 32. a4 {[%clk 0:01:21.3]}
32... Ref8 {[%clk 0:00:20.1]} 33. g4 {[%clk 0:01:21.3]} 33... g6 {[%clk
0:00:17.5]} 34. fxg6 {[%clk 0:01:12.6]} 34... hxg6 {[%clk 0:00:18.4]} 35. Rg2
{[%clk 0:01:08.4]} 35... g5 {[%clk 0:00:14.4]} 36. Rdf2 {[%clk 0:01:05.1]} 36...
Ne6 {[%clk 0:00:14.1]} 37. h4 {[%clk 0:00:55]} 37... gxh4 {[%clk 0:00:11.8]} 38.
Rf5 {[%clk 0:00:54.6]} 38... Rg7 {[%clk 0:00:08]} 39. Qe1 {[%clk 0:00:53.1]}
39... Rh7 {[%clk 0:00:04.4]} 40. Rh5 {[%clk 0:00:48.5]} 40... Ng5 {[%clk
0:00:03.5]} 41. Qf2 {[%clk 0:00:42]} 41... Kg7 {[%clk 0:00:03.3]} 42. Qf5 {[%clk
0:00:39.5]} 42... Rxh5 {[%clk 0:00:03.3]} 43. gxh5 {[%clk 0:00:39.3]} 43... Qe8
{[%clk 0:00:03.4]} 44. Nxc7 {[%clk 0:00:37.2]} 44... Qxh5 {[%clk 0:00:03.1]} 45.
Ne6+ {[%clk 0:00:37.1]} 45... Kg8 {[%clk 0:00:02.4]} 46. Nxg5 {[%clk 0:00:36.3]}
46... fxg5 {[%clk 0:00:02]} 47. Rxg5+ {[%clk 0:00:34]} 47... Qxg5+ {[%clk
0:00:02.5]} 48. Qxg5+ {[%clk 0:00:34.5]} 48... Kf7 {[%clk 0:00:03]} 49. Qh5+
{[%clk 0:00:30.8]} 49... Ke6 {[%clk 0:00:03.5]} 50. Qxh4 {[%clk 0:00:29.5]}
50... Rf6 {[%clk 0:00:03.4]} 51. Qh8 {[%clk 0:00:28.7]} 51... Rg6+ {[%clk
0:00:03.2]} 52. Kf2 {[%clk 0:00:27.4]} 52... Rf6+ {[%clk 0:00:04.1]} 53. Ke3
{[%clk 0:00:27.3]} 53... Rf7 {[%clk 0:00:04.6]} 1-0

[Event "*** Titled Tuesday Blitz"]
[Site "Chess.com"]
[Date "2020.04.21"]
[Round "4"]
[White "velemajstor767276"]
[Black "DanielTitichoca"]
[Result "0-1"]
[WhiteElo "2514"]
[BlackElo "2330"]
[TimeControl "180+1"]
[EndTime "10:40:36 PDT"]
[Termination "DanielTitichoca won on time"]

1. Nf3 {[%clk 0:02:42.5]} 1... c5 {[%clk 0:02:58.8]} 2. g3 {[%clk 0:02:40.4]}
2... Nc6 {[%clk 0:02:59.1]} 3. Bg2 {[%clk 0:02:40.8]} 3... g6 {[%clk 0:02:59.4]}
4. O-O {[%clk 0:02:41.7]} 4... Bg7 {[%clk 0:02:59.6]} 5. c3 {[%clk 0:02:40.3]}
5... e5 {[%clk 0:02:52.8]} 6. d3 {[%clk 0:02:39.9]} 6... Nge7 {[%clk 0:02:52.7]}
7. a3 {[%clk 0:02:39.8]} 7... O-O {[%clk 0:02:44.6]} 8. e4 {[%clk 0:02:36.7]}
8... d6 {[%clk 0:02:44.4]} 9. b4 {[%clk 0:02:36]} 9... b6 {[%clk 0:02:44]} 10.
Nbd2 {[%clk 0:02:34]} 10... h6 {[%clk 0:02:40.7]} 11. Nc4 {[%clk 0:02:31.4]}
11... Be6 {[%clk 0:02:39]} 12. Nfd2 {[%clk 0:02:08.1]} 12... b5 {[%clk
0:02:33.1]} 13. Ne3 {[%clk 0:02:06.6]} 13... a5 {[%clk 0:02:32.4]} 14. bxa5
{[%clk 0:01:33]} 14... Rxa5 {[%clk 0:02:27.4]} 15. Bb2 {[%clk 0:01:32]} 15...
Qb6 {[%clk 0:02:22.8]} 16. Nd5 {[%clk 0:01:29.1]} 16... Bxd5 {[%clk 0:02:15.4]}
17. exd5 {[%clk 0:01:28.6]} 17... Nb8 {[%clk 0:02:15.7]} 18. c4 {[%clk
0:01:23.2]} 18... Nd7 {[%clk 0:02:15.3]} 19. Bc3 {[%clk 0:01:11.1]} 19... Ra4
{[%clk 0:02:10.8]} 20. Rb1 {[%clk 0:01:05.4]} 20... Rxa3 {[%clk 0:02:04]} 21.
Rxb5 {[%clk 0:01:06]} 21... Qa7 {[%clk 0:02:00.7]} 22. Bb2 {[%clk 0:01:05.1]}
22... Ra2 {[%clk 0:01:58.7]} 23. Qb3 {[%clk 0:01:05.5]} 23... Rb8 {[%clk
0:01:48]} 24. Rxb8+ {[%clk 0:01:03.7]} 24... Nxb8 {[%clk 0:01:47.2]} 25. Ne4
{[%clk 0:01:03.7]} 25... Ra6 {[%clk 0:01:43.2]} 26. Bh3 {[%clk 0:00:56]} 26...
f5 {[%clk 0:01:41.1]} 27. Nc3 {[%clk 0:00:55.7]} 27... Nd7 {[%clk 0:01:31.5]}
28. Nb5 {[%clk 0:00:54.1]} 28... Qb6 {[%clk 0:01:31.6]} 29. Re1 {[%clk
0:00:48.2]} 29... Qa5 {[%clk 0:01:30.6]} 30. Bc3 {[%clk 0:00:46.5]} 30... Qb6
{[%clk 0:01:23.6]} 31. f4 {[%clk 0:00:44.5]} 31... h5 {[%clk 0:01:10.7]} 32. Bf1
{[%clk 0:00:25]} 32... Nc8 {[%clk 0:01:07.2]} 33. fxe5 {[%clk 0:00:22.7]} 33...
Nxe5 {[%clk 0:01:03.2]} 34. Be2 {[%clk 0:00:21.3]} 34... Qb7 {[%clk 0:00:43.1]}
35. Qb2 {[%clk 0:00:19]} 35... Rb6 {[%clk 0:00:40]} 36. Qd2 {[%clk 0:00:11.7]}
36... Ne7 {[%clk 0:00:36.6]} 37. Bd1 {[%clk 0:00:09.4]} 37... Nxd5 {[%clk
0:00:34.8]} 38. Nxd6 {[%clk 0:00:07.2]} 38... Rxd6 {[%clk 0:00:34.6]} 39. cxd5
{[%clk 0:00:04.2]} 39... Qxd5 {[%clk 0:00:32.2]} 40. Qe2 {[%clk 0:00:04.5]}
40... Nc6 {[%clk 0:00:18.8]} 41. Qe8+ {[%clk 0:00:03.8]} 41... Kh7 {[%clk
0:00:18.3]} 42. Bxg7 {[%clk 0:00:03.2]} 42... Kxg7 {[%clk 0:00:18.5]} 43. Be2
{[%clk 0:00:01]} 43... Re6 {[%clk 0:00:16.5]} 44. Qc8 {[%clk 0:00:01.6]} 44...
Nd4 {[%clk 0:00:15]} 45. Qc7+ {[%clk 0:00:02.2]} 45... Kh6 {[%clk 0:00:14.5]}
46. Kf1 {[%clk 0:00:02.3]} 46... Nxe2 {[%clk 0:00:14.2]} 0-1